[Event "2. Itzehoer Schach Open"]
[Site "Itzehoe, Germany"]
[Date "2023.04.30"]
[Round "3.44"]
[White "Moeller, Rainer"]
[Black "Roebers, Bregje"]
[Result "1/2-1/2"]
[TimeControl "90 min für 40 Züge, Rest 30 min + 30 Sek pro Zug"]
[WhiteElo "1414"]
[BlackElo "1162"]

1. e4 {[%clk 01:30:57]} {[%emt 00:00:02]} g6 {[%clk 01:27:49]} {[%emt
00:03:13]} 2. d4 {[%clk 01:31:00]} {[%emt 00:00:27]} Bg7 {[%clk 01:28:11]}
{[%emt 00:00:07]} 3. Nf3 {[%clk 01:31:06]} {[%emt 00:00:24]} d6 {[%clk
01:28:34]} {[%emt 00:00:08]} 4. Bc4 {[%clk 01:28:44]} {[%emt 00:02:52]} Nf6
{[%clk 01:28:29]} {[%emt 00:00:35]} 5. O-O {[%clk 01:27:39]} {[%emt 00:01:34]}
O-O {[%clk 01:28:45]} {[%emt 00:00:14]} 6. Nc3 {[%clk 01:26:56]} {[%emt
00:01:12]} Bg4 {[%clk 01:27:33]} {[%emt 00:01:43]} 7. Re1 {[%clk 01:25:14]}
{[%emt 00:02:11]} Bxf3 {[%clk 01:20:59]} {[%emt 00:07:05]} 8. Qxf3 {[%clk
01:25:30]} {[%emt 00:00:13]} Nfd7 {[%clk 01:20:02]} {[%emt 00:01:28]} 9. Be3
{[%clk 01:18:11]} {[%emt 00:07:49]} e5 {[%clk 01:17:52]} {[%emt 00:02:40]} 10.
Rad1 {[%clk 01:13:10]} {[%emt 00:05:31]} exd4 {[%clk 01:09:53]} {[%emt
00:08:29]} 11. Bxd4 {[%clk 01:13:22]} {[%emt 00:00:17]} Bxd4 {[%clk 01:06:40]}
{[%emt 00:03:44]} 12. Rxd4 {[%clk 01:13:13]} {[%emt 00:00:38]} Nc6 {[%clk
01:06:53]} {[%emt 00:00:18]} 13. Rdd1 {[%clk 01:10:21]} {[%emt 00:03:22]} Nce5
{[%clk 01:05:04]} {[%emt 00:02:18]} 14. Qe2 {[%clk 01:10:30]} {[%emt 00:00:21]}
Nxc4 {[%clk 01:04:39]} {[%emt 00:00:56]} 15. Qxc4 {[%clk 01:10:53]} {[%emt
00:00:07]} Nb6 {[%clk 01:03:58]} {[%emt 00:01:12]} 16. Qe2 {[%clk 01:09:37]}
{[%emt 00:01:45]} Re8 {[%clk 01:02:33]} {[%emt 00:01:55]} 17. Qd3 {[%clk
00:59:54]} {[%emt 00:10:13]} Qe7 {[%clk 00:58:43]} {[%emt 00:04:20]} 18. Qf1
{[%clk 00:52:55]} {[%emt 00:07:29]} Rad8 {[%clk 00:52:47]} {[%emt 00:06:26]} 19.
Nd5 {[%clk 00:37:49]} {[%emt 00:15:36]} Nxd5 {[%clk 00:53:04]} {[%emt
00:00:12]} 20. exd5 {[%clk 00:38:10]} {[%emt 00:00:10]} Qd7 {[%clk 00:53:08]}
{[%emt 00:00:26]} 21. c4 {[%clk 00:36:24]} {[%emt 00:02:16]} Qa4 {[%clk
00:49:17]} {[%emt 00:04:21]} 22. Ra1 {[%clk 00:32:33]} {[%emt 00:04:18]} Qc2
{[%clk 00:40:07]} {[%emt 00:09:42]} 23. b3 {[%clk 00:32:22]} {[%emt 00:00:42]}
Qc3 {[%clk 00:36:04]} {[%emt 00:04:33]} 24. Rec1 {[%clk 00:30:41]} {[%emt
00:02:11]} Qd2 {[%clk 00:35:39]} {[%emt 00:00:55]} 25. Rd1 {[%clk 00:29:44]}
{[%emt 00:01:27]} Qe2 {[%clk 00:35:56]} {[%emt 00:00:13]} 26. Re1 {[%clk
00:28:27]} {[%emt 00:01:46]} Qxf1+ {[%clk 00:36:18]} {[%emt 00:00:08]} 27. Kxf1
{[%clk 00:28:29]} {[%emt 00:00:29]} Kf8 {[%clk 00:36:34]} {[%emt 00:00:13]} 28.
Re3 {[%clk 00:26:25]} {[%emt 00:02:34]} Rxe3 {[%clk 00:34:30]} {[%emt
00:02:34]} 29. fxe3 {[%clk 00:26:43]} {[%emt 00:00:13]} Ke7 {[%clk 00:32:53]}
{[%emt 00:02:08]} 30. Ke2 {[%clk 00:26:28]} {[%emt 00:00:44]} f6 {[%clk
00:31:27]} {[%emt 00:01:56]} 31. g4 {[%clk 00:23:58]} {[%emt 00:02:59]} Rg8
{[%clk 00:27:19]} {[%emt 00:04:39]} 32. Rg1 {[%clk 00:23:28]} {[%emt 00:01:00]}
g5 {[%clk 00:26:01]} {[%emt 00:01:48]} 33. Kf3 {[%clk 00:21:37]} {[%emt
00:02:21]} Kf7 {[%clk 00:24:45]} {[%emt 00:01:46]} 34. h3 {[%clk 00:18:14]}
{[%emt 00:03:52]} Re8 {[%clk 00:22:29]} {[%emt 00:02:46]} 35. e4 {[%clk
00:16:21]} {[%emt 00:02:23]} Kg6 {[%clk 00:22:21]} {[%emt 00:00:38]} 36. Rg2
{[%clk 00:08:53]} {[%emt 00:07:57]} Re5 {[%clk 00:19:39]} {[%emt 00:03:12]} 37.
a4 {[%clk 00:08:07]} {[%emt 00:01:16]} Re8 {[%clk 00:18:19]} {[%emt 00:01:51]}
38. b4 {[%clk 00:07:59]} {[%emt 00:00:38]} Ra8 {[%clk 00:12:02]} {[%emt
00:06:47]} 39. Rc2 {[%clk 00:07:15]} {[%emt 00:01:13]} Rd8 {[%clk 00:08:54]}
{[%emt 00:03:39]} 40. c5 {[%clk 00:06:49]} {[%emt 00:00:56]} dxc5 {[%clk
00:09:13]} {[%emt 00:00:11]} 41. bxc5 {[%clk 00:06:32]} {[%emt 00:00:46]} Rc8
{[%clk 00:06:07]} {[%emt 00:03:38]} 42. Rb2 {[%clk 00:05:41]} {[%emt 00:01:20]}
b6 {[%clk 00:05:44]} {[%emt 00:00:55]} 43. Rc2 {[%clk 00:02:58]} {[%emt
00:03:12]} Rd8 {[%clk 00:03:52]} {[%emt 00:02:22]} 44. Ke3 {[%clk 00:28:59]}
{[%emt 00:04:28]} Rd7 {[%clk 00:32:35]} {[%emt 00:01:49]} 45. c6 {[%clk
00:26:43]} {[%emt 00:02:45]} Rd8 {[%clk 00:31:01]} {[%emt 00:02:03]} 46. Kd4
{[%clk 00:22:39]} {[%emt 00:04:35]} Rd6 {[%clk 00:21:48]} {[%emt 00:09:44]} 47.
Re2 {[%clk 00:21:16]} {[%emt 00:01:52]} Kf7 {[%clk 00:20:57]} {[%emt 00:01:20]}
48. Kc4 {[%clk 00:21:03]} {[%emt 00:00:44]} a6 {[%clk 00:20:27]} {[%emt
00:01:01]} 49. e5 {[%clk 00:19:00]} {[%emt 00:02:33]} fxe5 {[%clk 00:20:39]}
{[%emt 00:00:17]} 50. Rxe5 {[%clk 00:19:10]} {[%emt 00:00:19]} h6 {[%clk
00:19:57]} {[%emt 00:01:13]} 51. Rf5+ {[%clk 00:18:48]} {[%emt 00:00:50]} Ke7
{[%clk 00:19:47]} {[%emt 00:00:41]} 52. Re5+ {[%clk 00:18:44]} {[%emt
00:00:34]} Kf7 {[%clk 00:19:53]} {[%emt 00:00:24]} 53. Rf5+ {[%clk 00:19:07]}
{[%emt 00:00:07]} Ke7 {[%clk 00:20:14]} {[%emt 00:00:10]} 1/2-1/2

[Event "2. Itzehoer Schach Open"]
[Site "Itzehoe, Germany"]
[Date "2023.04.30"]
[Round "3.42"]
[White "Dau-Schmidt, Piet"]
[Black "Lorenzen, Lars"]
[Result "0-1"]
[TimeControl "90 min für 40 Züge, Rest 30 min + 30 Sek pro Zug"]
[WhiteElo "1606"]
[BlackElo "1218"]

1. d4 {[%clk 01:28:27]} {[%emt 00:02:33]} Nf6 {[%clk 01:30:55]} {[%emt
00:00:05]} 2. c4 {[%clk 01:28:50]} {[%emt 00:00:07]} g6 {[%clk 01:31:19]}
{[%emt 00:00:06]} 3. g3 {[%clk 01:29:16]} {[%emt 00:00:04]} Bg7 {[%clk
01:31:44]} {[%emt 00:00:05]} 4. Bg2 {[%clk 01:29:42]} {[%emt 00:00:04]} d6
{[%clk 01:32:03]} {[%emt 00:00:11]} 5. Nf3 {[%clk 01:30:08]} {[%emt 00:00:05]}
O-O {[%clk 01:32:14]} {[%emt 00:00:19]} 6. O-O {[%clk 01:30:33]} {[%emt
00:00:05]} Bf5 {[%clk 01:32:26]} {[%emt 00:00:17]} 7. Nc3 {[%clk 01:30:53]}
{[%emt 00:00:10]} Nbd7 {[%clk 01:32:43]} {[%emt 00:00:13]} 8. Re1 {[%clk
01:31:01]} {[%emt 00:00:22]} e5 {[%clk 01:32:47]} {[%emt 00:00:26]} 9. e4
{[%clk 01:30:40]} {[%emt 00:00:51]} Bg4 {[%clk 01:33:01]} {[%emt 00:00:16]} 10.
d5 {[%clk 01:30:50]} {[%emt 00:00:20]} a5 {[%clk 01:32:18]} {[%emt 00:01:13]}
11. h3 {[%clk 01:30:11]} {[%emt 00:01:09]} Bxf3 {[%clk 01:32:33]} {[%emt
00:00:14]} 12. Qxf3 {[%clk 01:30:23]} {[%emt 00:00:18]} Nc5 {[%clk 01:32:43]}
{[%emt 00:00:20]} 13. Bg5 {[%clk 01:27:51]} {[%emt 00:03:02]} h6 {[%clk
01:30:45]} {[%emt 00:02:28]} 14. Bd2 {[%clk 01:27:40]} {[%emt 00:00:42]} Nfd7
{[%clk 01:25:42]} {[%emt 00:05:33]} 15. b3 {[%clk 01:27:10]} {[%emt 00:01:01]}
f5 {[%clk 01:24:30]} {[%emt 00:01:41]} 16. Qe2 {[%clk 01:23:01]} {[%emt
00:04:39]} Rf6 {[%clk 01:21:22]} {[%emt 00:03:38]} 17. f4 {[%clk 01:16:20]}
{[%emt 00:07:11]} Qe7 {[%clk 01:17:45]} {[%emt 00:04:07]} 18. exf5 {[%clk
01:12:47]} {[%emt 00:04:03]} Rxf5 {[%clk 01:16:45]} {[%emt 00:01:30]} 19. Rab1
{[%clk 01:04:19]} {[%emt 00:08:58]} Raf8 {[%clk 01:13:39]} {[%emt 00:03:36]} 20.
Nb5 {[%clk 01:02:50]} {[%emt 00:01:59]} c6 {[%clk 01:11:42]} {[%emt 00:02:28]}
21. dxc6 {[%clk 01:03:09]} {[%emt 00:00:11]} bxc6 {[%clk 01:11:56]} {[%emt
00:00:16]} 22. Bxc6 {[%clk 01:03:25]} {[%emt 00:00:13]} Qd8 {[%clk 01:10:45]}
{[%emt 00:01:41]} 23. Nxd6 {[%clk 01:02:08]} {[%emt 00:01:47]} Rh5 {[%clk
01:07:19]} {[%emt 00:03:56]} 24. Bd5+ {[%clk 00:59:56]} {[%emt 00:02:40]} Kh7
{[%clk 01:07:28]} {[%emt 00:00:23]} 25. Kg2 {[%clk 00:58:31]} {[%emt 00:01:56]}
Nf6 {[%clk 01:06:18]} {[%emt 00:01:40]} 26. fxe5 {[%clk 00:56:33]} {[%emt
00:02:28]} Nxd5 {[%clk 01:06:06]} {[%emt 00:00:42]} 27. cxd5 {[%clk 00:56:48]}
{[%emt 00:00:14]} Rxe5 {[%clk 01:06:16]} {[%emt 00:00:20]} 28. Qc4 {[%clk
00:51:22]} {[%emt 00:05:56]} Qxd6 {[%clk 01:06:31]} {[%emt 00:00:15]} 29. Bf4
{[%clk 00:51:32]} {[%emt 00:00:20]} Qxd5+ {[%clk 01:06:51]} {[%emt 00:00:09]}
30. Qxd5 {[%clk 00:50:33]} {[%emt 00:01:30]} Rxd5 {[%clk 01:07:12]} {[%emt
00:00:10]} 31. Re7 {[%clk 00:39:48]} {[%emt 00:11:14]} Kg8 {[%clk 01:03:44]}
{[%emt 00:03:58]} 32. Be3 {[%clk 00:37:11]} {[%emt 00:03:07]} Bd4 {[%clk
01:03:01]} {[%emt 00:01:13]} 33. Bxh6 {[%clk 00:31:37]} {[%emt 00:06:04]} Rf2+
{[%clk 01:01:38]} {[%emt 00:01:53]} 34. Kh1 {[%clk 00:32:01]} {[%emt 00:00:06]}
Re5 {[%clk 01:01:51]} {[%emt 00:00:18]} 35. Rxe5 {[%clk 00:28:58]} {[%emt
00:03:32]} Bxe5 {[%clk 01:02:15]} {[%emt 00:00:06]} 36. Be3 {[%clk 00:26:33]}
{[%emt 00:02:55]} Rc2 {[%clk 01:02:33]} {[%emt 00:00:12]} 37. Rd1 {[%clk
00:26:53]} {[%emt 00:00:10]} Ne4 {[%clk 01:02:16]} {[%emt 00:00:48]} 38. Rd8+
{[%clk 00:24:29]} {[%emt 00:02:53]} Kf7 {[%clk 01:02:00]} {[%emt 00:00:46]} 39.
Rd5 {[%clk 00:21:02]} {[%emt 00:03:56]} Nxg3+ {[%clk 01:00:50]} {[%emt
00:01:40]} 40. Kg1 {[%clk 00:21:13]} {[%emt 00:00:19]} Bc3 {[%clk 00:58:12]}
{[%emt 00:03:09]} 41. Rg5 {[%clk 00:18:40]} {[%emt 00:03:02]} Nf5 {[%clk
00:57:12]} {[%emt 00:01:31]} 42. Bc5 {[%clk 00:17:22]} {[%emt 00:01:48]} Rxa2
{[%clk 00:56:45]} {[%emt 00:00:57]} 43. Rg4 {[%clk 00:17:35]} {[%emt 00:00:17]}
Rb2 {[%clk 00:56:15]} {[%emt 00:01:00]} 44. Rf4 {[%clk 00:15:48]} {[%emt
00:02:16]} Rxb3 {[%clk 00:55:54]} {[%emt 00:00:51]} 45. Kg2 {[%clk 00:15:45]}
{[%emt 00:00:33]} a4 {[%clk 00:55:19]} {[%emt 00:01:05]} 46. Rxa4 {[%clk
00:15:29]} {[%emt 00:00:46]} Be1 {[%clk 00:54:24]} {[%emt 00:01:26]} 47. Rf4
{[%clk 00:12:50]} {[%emt 00:03:08]} Rg3+ {[%clk 00:53:16]} {[%emt 00:01:38]} 48.
Kh2 {[%clk 00:11:36]} {[%emt 00:01:44]} Rc3 {[%clk 00:53:41]} {[%emt 00:00:05]}
49. Kg2 {[%clk 00:06:46]} {[%emt 00:05:20]} Rxc5 {[%clk 00:53:54]} {[%emt
00:00:18]} 0-1